fUSD/lending_fUSD_20240218
["ID","MTS","AMOUNT","RATE_DAILY","PERIOD"]
[314370669,1708240232211,-156.89,0.00035071,2]
[314370671,1708240232220,-329.74,0.00035111,2]
[314370673,1708240232229,-157.34182448,0.00035157,2]
[314370675,1708240232242,-170.2,0.00035158,2]
[314370677,1708240232251,-259.34,0.00035158,2]
[314370679,1708240232261,-156.89,0.00035171,2]
[314370681,1708240232270,-156.89,0.0003527,2]
[314370682,1708240232281,-168.26,0.00035294,2]
[314370683,1708240232290,-398.91,0.00035365,2]
[314370684,1708240232300,-156.89,0.0003537,2]
[314370685,1708240232311,-21524.26,0.0003539,2]
[314370686,1708240232320,-157.34182448,0.00035425,2]
[314370687,1708240232329,-156.89,0.0003547,2]
[314370688,1708240232339,-156.89,0.00035569,2]
[314370689,1708240232348,-1000.0,0.000356,2]
[314370690,1708240232358,-201.58,0.00035634,2]
[314370691,1708240232368,-1484.57,0.00035634,2]
[314370692,1708240232377,-156.89,0.00035669,2]
[314370693,1708240232387,-157.34182448,0.00035693,2]
[314370694,1708240232396,-500.0,0.00035698,2]
[314370695,1708240232405,-500.0,0.00035698,2]
[314370696,1708240232415,-500.0,0.00035698,2]
[314370697,1708240232424,-500.0,0.00035698,2]
[314370698,1708240232433,-500.0,0.00035698,2]
[314370699,1708240232442,-500.0,0.00035698,2]
[314370700,1708240232452,-2091.02,0.00035698,2]
[314370701,1708240232461,-500.0,0.00035698,2]
[314370702,1708240232471,-695.94,0.00035698,2]
[314370703,1708240232480,-500.0,0.00035698,2]
[314370704,1708240232489,-500.0,0.00035698,2]
[314370705,1708240232498,-500.0,0.00035698,2]
[314370706,1708240232508,-500.0,0.00035698,2]
[314370707,1708240232518,-500.0,0.00035698,2]
[314370708,1708240232526,-500.0,0.00035698,2]
[314370709,1708240232536,-500.0,0.00035698,2]
[314370710,1708240232545,-500.0,0.00035698,2]
[314370711,1708240232742,-574.81,0.00035698,2]
[314370712,1708240232751,-639.42,0.00035698,2]
[314370713,1708240232761,-500.0,0.00035698,2]
[314370714,1708240232770,-500.0,0.00035698,2]
[314370715,1708240232779,-500.0,0.00035698,2]
[314370716,1708240232788,-500.0,0.00035698,2]
[314370717,1708240232798,-584.75,0.00035698,2]
[314370718,1708240232807,-500.0,0.00035699,7]
[314370719,1708240232817,-500.0,0.00035699,2]
[314370720,1708240232826,-500.0,0.00035699,2]
[314370721,1708240232836,-500.0,0.00035699,2]
[314370722,1708240232845,-500.0,0.00035699,2]
[314370723,1708240232854,-500.0,0.00035699,2]
[314370724,1708240232864,-534.32100354,0.00035699,2]
[314370725,1708240232874,-627.84378906,0.00035699,2]
[314370726,1708240232883,-308.30674936,0.00035699,2]
[314370727,1708240232893,-500.0,0.00035699,2]
[314370728,1708240232902,-500.0,0.00035699,2]
[314370729,1708240232911,-500.0,0.00035699,2]
[314370730,1708240232920,-571.61384111,0.00035699,2]
[314370731,1708240232930,-557.99443959,0.00035699,2]
[314370732,1708240232939,-561.40560097,0.00035699,2]
[314370733,1708240232948,-500.0,0.00035699,2]
[314370734,1708240232957,-500.0,0.00035699,2]
[314370735,1708240232966,-5808.72586151,0.000357,2]
[314370736,1708240232975,-156.89,0.00035768,2]
[314370737,1708240232984,-500.0,0.00035796,2]
[314370738,1708240232993,-500.0,0.00035796,2]
[314370739,1708240233002,-500.0,0.00035796,2]
[314370740,1708240233012,-251.6271832,0.00035796,2]
[314370741,1708240233021,-500.0,0.00035796,2]
[314370742,1708240233030,-500.0,0.00035796,2]
[314370743,1708240233038,-500.0,0.00035796,2]
[314370744,1708240233048,-500.0,0.00035796,2]
[314370745,1708240233058,-500.0,0.00035799,2]
[314370746,1708240233067,-500.0,0.00035799,2]
[314370747,1708240233076,-500.0,0.00035799,2]
[314370748,1708240233085,-156.89,0.00035868,2]
[314370749,1708240233095,-167.95,0.00035899,2]
[314370750,1708240233104,-157.34182448,0.00035961,2]
[314370751,1708240233113,-156.89,0.00035967,2]
[314370752,1708240233122,-293.95329724,0.00035973,2]
[314370753,1708240233131,-150.0,0.00036018,2]
[314370754,1708240233140,-156.89,0.00036067,2]
[314370755,1708240233148,-156.89,0.00036166,2]
[314370756,1708240233157,-150.0,0.00036192,2]
[314370757,1708240233166,-157.34182448,0.00036229,2]
[314370758,1708240233175,-354.02,0.00036269,2]
[314370759,1708240233185,-150.0,0.00036361,2]
[314370760,1708240233194,-155.0,0.0003637,2]
[314370761,1708240233203,-150.0,0.00036377,2]
[314370762,1708240233212,-150.0,0.00036397,2]
[314370763,1708240233221,-167.95,0.00036412,2]
[314370764,1708240233231,-150.0,0.00036432,2]
[314370765,1708240233243,-150.0,0.00036491,2]
[314370766,1708240233252,-157.34182448,0.00036496,2]
[314370767,1708240233263,-150.0,0.00036569,2]
[314370768,1708240233272,-150.0,0.00036613,2]
[314370769,1708240233282,-150.0,0.00036646,2]
[314370770,1708240233291,-150.0,0.00036707,2]
[314370771,1708240233300,-150.0,0.00036707,2]
[314370772,1708240233311,-150.0,0.00036746,2]
[314370773,1708240233323,-157.34182448,0.00036764,2]
[314370774,1708240233333,-150.0,0.0003678,2]
[314370775,1708240233343,-157.021822,0.00036798,17]
[314370776,1708240233352,-12636.07665518,0.00036798,2]
[314370777,1708240233361,-438.41118419,0.00036798,2]
[314370778,1708240233370,-4349.6235,0.00036799,2]
[314370779,1708240233379,-2500.0,0.00036799,2]
[314370780,1708240233389,-165.81409443,0.00036799,8]
[314370781,1708240233399,-1042.24701062,0.00036811,2]
[314370782,1708240233410,-193.0239431,0.00036819,2]
[314370783,1708240233419,-153.05109478,0.00036819,2]
[314370784,1708240233429,-537.08175214,0.00036819,2]
[314370785,1708240233438,-278.06970482,0.0003689,2]
[314370786,1708240233447,-659.52391044,0.00036897,4]
[314370787,1708240233457,-508.49939132,0.00036897,5]
[314370788,1708240233466,-151.021822,0.00036898,18]
[314370789,1708240233476,-151.021822,0.00036898,16]
[314370790,1708240233486,-151.021822,0.00036898,16]
[314370791,1708240233495,-157.021822,0.00036898,18]
[314370792,1708240233504,-157.021822,0.00036898,17]
[314370793,1708240233514,-157.021822,0.00036898,17]
[314370794,1708240233523,-157.021822,0.00036898,16]
[314370795,1708240233531,-500.0,0.00036898,2]
[314370796,1708240233541,-500.0,0.00036898,2]
[314370797,1708240233550,-500.0,0.00036898,2]
[314370798,1708240233560,-632.3,0.00036898,2]
[314370799,1708240233569,-500.0,0.00036898,2]
[314370800,1708240233578,-603.39905913,0.00036898,2]
[314370801,1708240233587,-500.0,0.00036898,2]
[314370802,1708240233596,-500.0,0.00036898,2]
[314370803,1708240233606,-500.0,0.00036898,2]
[314370804,1708240233615,-1256.47,0.00036898,2]
[314370805,1708240233624,-14193.29665459,0.00036898,2]
[314370806,1708240233633,-500.0,0.00036898,2]
[314370807,1708240233642,-500.0,0.00036898,2]
[314370808,1708240233651,-500.0,0.00036898,2]
[314370809,1708240233661,-500.0,0.00036898,2]
[314370810,1708240233670,-786.22,0.00036898,2]
[314370811,1708240233679,-613.03225812,0.00036898,2]
[314370812,1708240233688,-1354.16,0.00036898,2]
[314370813,1708240233697,-341.3673715,0.00036898,2]
[314370814,1708240233706,-1430.81,0.00036898,2]
[314370815,1708240233715,-500.0,0.00036898,2]
[314370816,1708240233724,-500.0,0.00036898,2]
[314370817,1708240233733,-472.92033808,0.00036898,2]
[314370818,1708240233743,-1171.44,0.00036898,2]
[314370819,1708240233752,-500.0,0.00036898,2]
[314370820,1708240233761,-500.0,0.00036898,2]
[314370821,1708240233769,-500.0,0.00036898,2]
[314370822,1708240233778,-500.0,0.00036898,2]
[314370823,1708240233787,-3906.72,0.00036898,2]
[314370824,1708240233798,-876.01,0.00036898,2]
[314370825,1708240233807,-958.96,0.00036898,2]
[314370826,1708240233817,-891.32,0.00036898,2]
[314370827,1708240233827,-500.0,0.00036898,2]
[314370828,1708240233836,-354.3,0.00036898,2]
[314370829,1708240233846,-590.77325139,0.00036898,2]
[314370830,1708240233855,-500.0,0.00036898,2]
[314370831,1708240233864,-500.0,0.00036898,2]
[314370832,1708240233873,-500.0,0.00036898,2]
[314370833,1708240233882,-500.0,0.00036898,2]
[314370834,1708240233891,-500.84937232,0.00036898,2]
[314370835,1708240233901,-500.0,0.00036899,2]
[314370836,1708240233910,-500.0,0.00036899,2]
[314370837,1708240233919,-500.0,0.00036899,2]
[314370838,1708240233928,-500.0,0.00036899,2]
[314370839,1708240233938,-500.0,0.00036899,7]
[314370840,1708240233947,-500.0,0.00036899,7]
[314370841,1708240233956,-500.0,0.00036899,7]
[314370842,1708240233965,-500.0,0.00036899,7]
[314370843,1708240233974,-500.0,0.00036899,7]
[314370844,1708240233983,-500.0,0.00036899,2]
[314370845,1708240233992,-500.0,0.00036899,2]
[314370846,1708240234002,-500.0,0.00036899,2]
[314370847,1708240234011,-500.0,0.00036899,2]
[314370848,1708240234021,-500.0,0.00036899,2]
[314370849,1708240234029,-411.24535078,0.00036899,2]
[314370850,1708240234039,-531.69415599,0.00036899,2]
[314370851,1708240234048,-500.0,0.00036899,2]
[314370852,1708240234057,-500.0,0.00036899,2]
[314370853,1708240234066,-500.0,0.00036899,2]
[314370854,1708240234075,-500.0,0.00036899,2]
[314370855,1708240234084,-184.20873903,0.00036899,2]
[314370856,1708240234093,-580.49895962,0.00036899,2]
[314370857,1708240234102,-500.0,0.00036899,2]
[314370858,1708240234112,-500.0,0.00036899,2]
[314370859,1708240234120,-500.0,0.00036899,2]
[314370860,1708240234129,-500.0,0.00036899,2]
[314370861,1708240234138,-500.0,0.00036899,2]
[314370862,1708240234147,-500.0,0.00036899,2]
[314370863,1708240234156,-500.0,0.00036899,2]
[314370864,1708240234165,-500.0,0.00036899,2]
[314370865,1708240234174,-500.0,0.00036899,2]
[314370866,1708240234183,-500.0,0.00036899,2]
[314370867,1708240234191,-500.0,0.00036899,2]
[314370868,1708240234200,-500.0,0.00036899,2]
[314370869,1708240234209,-500.0,0.00036899,2]
[314370870,1708240234218,-269.40818131,0.00036899,2]
[314370871,1708240234228,-1256.47,0.00036899,2]
[314370872,1708240234242,-1256.47,0.00036899,2]
[314370873,1708240234252,-1256.47,0.00036899,2]
[314370874,1708240234261,-1256.47,0.00036899,2]
[314370875,1708240234271,-500.0,0.00036899,2]
[314370876,1708240234281,-500.0,0.00036899,2]
[314370877,1708240234290,-500.0,0.00036899,2]
[314370878,1708240234299,-500.0,0.00036899,2]
[314370879,1708240234309,-500.0,0.00036899,2]
[314370880,1708240234318,-500.0,0.00036899,2]
[314370881,1708240234328,-500.0,0.00036899,2]
[314370882,1708240234338,-500.0,0.00036899,2]
[314370883,1708240234347,-500.0,0.00036899,2]
[314370884,1708240234357,-500.0,0.00036899,2]
[314370885,1708240234366,-500.0,0.00036899,2]
[314370886,1708240234375,-500.0,0.00036899,2]
[314370887,1708240234384,-500.0,0.00036899,2]
[314370888,1708240234393,-333.32798134,0.00036899,2]
[314370889,1708240234403,-500.0,0.00036899,2]
[314370890,1708240234413,-500.0,0.00036899,2]
[314370891,1708240234422,-500.0,0.00036899,2]
[314370892,1708240234431,-500.0,0.00036899,2]
[314370893,1708240234441,-500.0,0.00036899,2]
[314370894,1708240234451,-2091.02,0.00036899,2]
[314370895,1708240234460,-500.0,0.00036899,2]
[314370896,1708240234469,-2091.02,0.00036899,2]
[314370897,1708240234478,-500.0,0.00036899,2]
[314370898,1708240234487,-2091.02,0.00036899,2]
[314370899,1708240234496,-500.0,0.00036899,2]
[314370900,1708240234505,-2091.02,0.00036899,2]
[314370901,1708240234514,-2091.02,0.00036899,2]
[314370902,1708240234524,-500.0,0.00036899,2]
[314370903,1708240234533,-500.0,0.00036899,2]
[314370904,1708240234542,-500.0,0.00036899,2]
[314370905,1708240234551,-500.0,0.00036899,2]
[314370906,1708240234560,-500.0,0.00036899,2]
[314370907,1708240234569,-500.0,0.00036899,2]
[314370908,1708240234578,-500.0,0.00036899,2]
[314370909,1708240234587,-500.0,0.00036899,2]
[314370910,1708240234595,-500.0,0.00036899,2]
[314370911,1708240234604,-500.0,0.00036899,2]
[314370912,1708240234613,-500.0,0.00036899,2]
[314370913,1708240234622,-500.0,0.00036899,2]
[314370914,1708240234632,-500.0,0.00036899,2]
[314370915,1708240234640,-500.0,0.00036899,2]
[314370916,1708240234649,-500.0,0.00036899,2]
[314370917,1708240234658,-500.0,0.00036899,2]
[314370918,1708240234667,-500.0,0.00036899,2]
[314370919,1708240234676,-500.0,0.00036899,2]
[314370920,1708240234685,-500.0,0.00036899,2]
[314370921,1708240234695,-221.76332946,0.00036899,2]
[314370922,1708240234703,-695.94,0.00036899,2]
[314370923,1708240234712,-695.94,0.00036899,2]
[314370924,1708240234721,-695.94,0.00036899,2]
[314370925,1708240234730,-695.94,0.00036899,2]
[314370926,1708240234739,-695.94,0.00036899,2]
[314370927,1708240234748,-500.0,0.00036899,2]
[314370928,1708240234757,-500.0,0.00036899,2]
[314370929,1708240234767,-500.0,0.00036899,2]
[314370930,1708240234776,-500.0,0.00036899,2]
[314370931,1708240234785,-500.0,0.00036899,2]
[314370932,1708240234794,-786.22,0.00036899,2]
[314370933,1708240234803,-786.22,0.00036899,2]
[314370934,1708240234812,-786.22,0.00036899,2]
[314370935,1708240234821,-500.0,0.00036899,2]
[314370936,1708240234830,-786.22,0.00036899,2]
[314370937,1708240234839,-242.21410618,0.00036899,2]
[314370938,1708240234848,-786.22,0.00036899,2]
[314370939,1708240234857,-500.0,0.00036899,2]
[314370940,1708240234866,-500.0,0.00036899,2]
[314370941,1708240234875,-500.0,0.00036899,2]
[314370942,1708240234883,-500.0,0.00036899,2]
[314370943,1708240234892,-500.0,0.00036899,2]
[314370944,1708240234901,-1354.16,0.00036899,2]
[314370945,1708240234910,-1354.16,0.00036899,2]
[314370946,1708240234919,-1354.16,0.00036899,2]
[314370947,1708240234929,-1354.16,0.00036899,2]
[314370948,1708240234938,-500.0,0.00036899,2]
[314370949,1708240234947,-500.0,0.00036899,2]
[314370950,1708240234956,-500.0,0.00036899,2]
[314370951,1708240234965,-500.0,0.00036899,2]
[314370952,1708240234975,-500.0,0.00036899,2]
[314370953,1708240234984,-500.0,0.00036899,2]
[314370954,1708240234992,-500.0,0.00036899,2]
[314370955,1708240235001,-199.56042199,0.00036899,2]
[314370956,1708240235011,-1430.81,0.00036899,2]
[314370957,1708240235021,-1430.81,0.00036899,2]
[314370958,1708240235031,-1430.81,0.00036899,2]
[314370959,1708240235040,-1430.81,0.00036899,2]
[314370960,1708240235049,-500.0,0.00036899,2]
[314370961,1708240235058,-500.0,0.00036899,2]
[314370962,1708240235068,-500.0,0.00036899,2]
[314370963,1708240235077,-500.0,0.00036899,2]
[314370964,1708240235086,-500.0,0.00036899,2]
[314370965,1708240235095,-500.0,0.00036899,2]
[314370966,1708240235105,-500.0,0.00036899,2]
[314370967,1708240235114,-500.0,0.00036899,2]
[314370968,1708240235124,-500.0,0.00036899,2]
[314370969,1708240235133,-500.0,0.00036899,2]
[314370970,1708240235142,-500.0,0.00036899,2]
[314370971,1708240235152,-500.0,0.00036899,2]
[314370972,1708240235161,-500.0,0.00036899,2]
[314370973,1708240235171,-500.0,0.00036899,2]
[314370974,1708240235181,-578.60797585,0.00036899,2]
[314370975,1708240235191,-1171.44,0.00036899,2]
[314370976,1708240235202,-1171.44,0.00036899,2]
[314370977,1708240235212,-1171.44,0.00036899,2]
[314370978,1708240235222,-1171.44,0.00036899,2]
[314370979,1708240235234,-1171.44,0.00036899,2]
[314370980,1708240235246,-500.0,0.00036899,2]
[314370981,1708240235257,-500.0,0.00036899,2]
[314370982,1708240235268,-500.0,0.00036899,2]
[314370983,1708240235279,-500.0,0.00036899,2]
[314370984,1708240235288,-500.0,0.00036899,2]
[314370985,1708240235298,-500.0,0.00036899,2]
[314370986,1708240235308,-500.0,0.00036899,2]
[314370987,1708240235320,-500.0,0.00036899,2]
[314370988,1708240235330,-211.25670099,0.00036899,2]
[314370989,1708240235339,-500.0,0.00036899,2]
[314370990,1708240235349,-500.0,0.00036899,2]
[314370991,1708240235358,-500.0,0.00036899,2]
[314370992,1708240235368,-500.0,0.00036899,2]
[314370993,1708240235377,-500.0,0.00036899,2]
[314370994,1708240235387,-500.0,0.00036899,2]
[314370995,1708240235396,-500.0,0.00036899,2]
[314370996,1708240235407,-500.0,0.00036899,2]
[314370997,1708240235417,-500.0,0.00036899,2]
[314370998,1708240235427,-500.0,0.00036899,2]
[314370999,1708240235437,-500.0,0.00036899,2]
[314371000,1708240235447,-500.0,0.00036899,2]
[314371001,1708240235457,-500.0,0.00036899,2]
[314371002,1708240235467,-500.0,0.00036899,2]
[314371003,1708240235476,-500.0,0.00036899,2]
[314371004,1708240235486,-500.0,0.00036899,2]
[314371005,1708240235495,-500.0,0.00036899,2]
[314371006,1708240235505,-500.0,0.00036899,2]
[314371007,1708240235514,-500.0,0.00036899,2]
[314371008,1708240235524,-500.0,0.00036899,2]
[314371009,1708240235533,-500.0,0.00036899,2]
[314371010,1708240235543,-500.0,0.00036899,2]
[314371011,1708240235552,-500.0,0.00036899,2]
[314371012,1708240235561,-500.0,0.00036899,2]
[314371013,1708240235571,-500.0,0.00036899,2]
[314371014,1708240235581,-500.0,0.00036899,2]
[314371015,1708240235590,-500.0,0.00036899,2]
[314371016,1708240235599,-574.81,0.00036899,2]
[314371017,1708240235609,-500.0,0.00036899,2]
[314371018,1708240235618,-574.81,0.00036899,2]
[314371019,1708240235627,-500.0,0.00036899,2]
[314371020,1708240235636,-574.81,0.00036899,2]
[314371021,1708240235645,-574.81,0.00036899,2]
[314371022,1708240235655,-574.81,0.00036899,2]
[314371023,1708240235664,-500.0,0.00036899,2]
[314371024,1708240235673,-500.0,0.00036899,2]
[314371025,1708240235684,-500.0,0.00036899,2]
[314371026,1708240235693,-3906.72,0.00036899,2]
[314371027,1708240235702,-500.0,0.00036899,2]
[314371028,1708240235712,-3906.72,0.00036899,2]
[314371029,1708240235721,-876.01,0.00036899,2]
[314371030,1708240235730,-1496.59219641,0.00036899,2]
[314371287,1708240240585,-160.84088993,0.00029597,2]
[314371289,1708240240594,-500.0,0.00035699,2]
[314371297,1708240240766,-500.0,0.00036898,2]
[314371298,1708240240777,-500.0,0.00036898,2]
[314371299,1708240240786,-500.0,0.00036898,2]
[314371300,1708240240795,-2410.12780359,0.00036899,2]
[314371301,1708240240805,-577.73130648,0.00036899,2]
[314371412,1708240242906,-298.27869352,0.00036899,2]
[314371413,1708240242920,-598.93085523,0.00036899,2]
[314371414,1708240242962,-3307.78914477,0.00036899,2]
[314371415,1708240242971,-876.01,0.00036899,2]
[314371416,1708240242980,-2433.83317216,0.00036899,2]
[314371429,1708240245797,-600.96064608,0.00036899,2]
[314371435,1708241434303,-211.99520263,0.00025778,2]
[314371436,1708241434312,-59.30113671,0.00025779,2]
[314371437,1708241434361,-988.75696845,0.00025779,2]
[314371438,1708241434371,-796.0068746,0.00025782,2]
[314371439,1708241434380,-150.0,0.00032239,3]
[314371440,1708241434389,-2682.69664704,0.0003224,4]
[314371441,1708241434402,-5226.18793904,0.0003224,4]
[314371442,1708241434422,-5906.63526208,0.0003224,4]
[314371443,1708241434433,-5498.25371473,0.0003224,4]
[314371444,1708241434443,-157.14673216,0.00032241,2]
[314371445,1708241434453,-2833.5835179,0.00032241,2]
[314371446,1708241434462,-359.92,0.0003234,2]
[314371447,1708241434471,-1500.0,0.00032983,2]
[314371448,1708241434480,-169.7,0.000339,2]
[314371449,1708241434489,-191.28,0.00033926,2]
[314371450,1708241434499,-150.0,0.00033994,2]
[314371451,1708241434508,-615.68,0.0003409,2]
[314371452,1708241434518,-150.0,0.00034179,2]
[314371453,1708241434528,-2693.15776591,0.00034206,2]
[314371454,1708241434547,-4303.44005827,0.00034206,2]
[314371455,1708241434566,-487.31326718,0.00034206,2]
[314371456,1708241434578,-2135.24835581,0.00034206,2]
[314371457,1708241434591,-562.43544538,0.00034206,2]
[314371458,1708241434603,-1101.33165979,0.00034206,2]
[314371459,1708241434622,-12617.07344766,0.00034206,2]
[314371460,1708241434633,-171.67,0.00034234,2]
[314371461,1708241434642,-337.77,0.00034264,2]
[314371462,1708241434652,-538.08,0.00034277,2]
[314371463,1708241434661,-597.2,0.00034289,2]
[314371464,1708241434671,-221.13,0.00034296,120]
[314371466,1708241434681,-2000.0,0.00034305,2]
[314371468,1708241434691,-179.22,0.00034321,2]
[314371470,1708241434700,-159.94,0.0003434,2]
[314371472,1708241434710,-150.0,0.00034359,2]
[314371474,1708241434720,-150.0,0.00034393,2]
[314371476,1708241434729,-157.14673215,0.00034521,2]
[314371478,1708241434739,-162.39,0.00034521,2]
[314371480,1708241434748,-359.92,0.00034604,2]
[314371481,1708241434758,-817.32207052,0.000347,2]
[314371482,1708241434767,-338.96,0.00034758,2]
[314371483,1708241434777,-150.0,0.0003476,2]
[314371484,1708241434786,-179.22,0.00034768,2]
[314371485,1708241434795,-150.0,0.0003477,2]
[314371486,1708241434805,-47989.784621,0.000348,2]
[314371487,1708241434814,-3034.296057,0.000348,2]
[314371488,1708241434824,-250.0,0.00034821,2]
[314371489,1708241434834,-150.0,0.00034861,2]
[314371490,1708241434843,-150.0,0.00034862,2]
[314371491,1708241434853,-150.0,0.00034921,2]
[314371492,1708241434862,-18293.0,0.00034952,2]
[314371493,1708241434873,-150.99,0.00035022,2]
[314371494,1708241434882,-384.32,0.00035078,2]
[314371495,1708241434891,-179.22,0.00035215,2]
[314371496,1708241434901,-150.0,0.00035219,2]
[314371497,1708241434910,-150.0,0.00035261,2]
[314371498,1708241434920,-314.09,0.00035389,2]
[314371499,1708241434929,-150.0,0.00035498,2]
[314371500,1708241434938,-151.0,0.00035527,30]
[314371501,1708241434947,-150.0,0.0003553,2]
[314371502,1708241434956,-1000.0,0.000356,2]
[314371503,1708241434965,-150.0,0.00035612,2]
[314371504,1708241434975,-191.28,0.00035622,2]
[314371505,1708241434984,-150.0,0.00035649,2]
[314371506,1708241434996,-179.22,0.00035662,2]
[314371507,1708241435005,-169.7,0.00035663,2]
[314371508,1708241435015,-150.0,0.00035679,2]
[314371509,1708241435025,-15420.24,0.00035698,2]
[314371510,1708241435035,-499.99,0.00035698,2]
[314371511,1708241435045,-212.403987,0.00035699,2]
[314371512,1708241435055,-500.0,0.00035699,2]
[314371513,1708241435065,-300.0,0.00035699,10]
[314371514,1708241435074,-500.0,0.00035699,2]
[314371515,1708241435084,-500.0,0.00035699,2]
[314371516,1708241435093,-500.0,0.00035699,2]
[314371517,1708241435103,-500.0,0.00035699,2]
[314371518,1708241435113,-500.0,0.00035699,2]
[314371519,1708241435122,-500.0,0.00035699,2]
[314371520,1708241435132,-150.0,0.00035754,2]
[314371521,1708241435142,-150.0,0.00035757,2]
[314371522,1708241435152,-150.0,0.0003577,2]
[314371523,1708241435162,-71984.676932,0.000358,2]
[314371524,1708241435171,-4551.444085,0.000358,2]
[314371525,1708241435181,-150.0,0.0003587,2]
[314371526,1708241435191,-155.0,0.00035899,2]
[314371527,1708241435200,-193.0,0.00035904,2]
[314371528,1708241435210,-337.77,0.00035908,2]
[314371529,1708241435219,-150.0,0.00035926,2]
[314371530,1708241435229,-150.0,0.00035948,2]
[314371531,1708241435239,-1500.0,0.00035948,2]
[314371532,1708241435248,-150.0,0.00035953,2]
[314371533,1708241435259,-207.0,0.00036,2]
[314371534,1708241435269,-150.0,0.00036053,2]
[314371535,1708241435281,-150.0,0.00036081,2]
[314371536,1708241435291,-179.22,0.0003611,2]
[314371537,1708241435302,-561.47263005,0.00036159,2]
[314371538,1708241435311,-150.0,0.00036199,2]
[314371539,1708241435321,-150.0,0.00036204,2]
[314371540,1708241435331,-150.0,0.00036209,2]
[314371541,1708241435340,-150.0,0.00036247,2]
[314371542,1708241435351,-151.0,0.00036252,7]
[314371543,1708241435362,-165.81409443,0.00036291,7]
[314371544,1708241435371,-150.0,0.00036296,2]
[314371545,1708241435381,-150.0,0.00036357,2]
[314371546,1708241435391,-150.0,0.0003637,2]
[314371547,1708241435401,-300.0,0.0003638,2]
[314371548,1708241435412,-152.68078231,0.00036386,2]
[314371549,1708241435422,-982.77,0.00036386,2]
[314371550,1708241435431,-500.0,0.00036386,2]
[314371551,1708241435441,-500.0,0.00036386,2]
[314371552,1708241435451,-500.0,0.00036386,2]
[314371553,1708241435462,-1464.29,0.00036386,2]
[314371554,1708241435472,-500.0,0.00036386,2]
[314371555,1708241435481,-500.0,0.00036386,2]
[314371556,1708241435491,-386.08369089,0.00036386,2]
[314371557,1708241435501,-500.0,0.00036386,2]
[314371558,1708241435511,-500.0,0.00036386,2]
[314371559,1708241435521,-500.0,0.00036386,2]
[314371560,1708241435531,-500.0,0.00036386,2]
[314371561,1708241435542,-500.0,0.00036386,2]
[314371562,1708241435553,-500.0,0.00036386,2]
[314371563,1708241435562,-500.0,0.00036386,2]
[314371564,1708241435572,-500.0,0.00036386,2]
[314371565,1708241435582,-1168.02,0.00036386,2]
[314371566,1708241435592,-1558.31,0.00036386,2]
[314371567,1708241435602,-500.0,0.00036386,2]
[314371568,1708241435613,-4909.31,0.00036386,2]
[314371569,1708241435625,-500.0,0.00036386,2]
[314371570,1708241435635,-500.0,0.00036386,2]
[314371571,1708241435646,-500.0,0.00036386,2]
[314371572,1708241435656,-414.99036661,0.00036386,2]
[314371573,1708241435666,-367.05112379,0.00036387,2]